bitfinex/quotes_SOLUSD_20241122
["timestamp","ask_amount","ask_price","bid_price","bid_amount"]
[1732244393393,23.776884,257.85,257.67,20.73538548]
[1732244393568,23.776884,257.85,257.68,4.94708548]
[1732244394282,27.655084,257.85,257.68,4.94708548]
[1732244394468,23.776884,257.83,257.68,4.94708548]
[1732244395077,27.655384,257.83,257.68,4.94708548]
[1732244395279,9.74847651,257.82,257.68,4.94708548]
[1732244395483,23.776884,257.77,257.67,15.7883]
[1732244396972,20.0,257.76,257.67,15.7883]
[1732244397276,23.776884,257.77,257.67,15.7883]
[1732244397873,23.776884,257.77,257.65,2.0]
[1732244397874,9.74847651,257.76,257.65,2.0]
[1732244398584,23.776884,257.75,257.65,2.0]
[1732244398993,20.0,257.81,257.65,2.0]
[1732244399191,20.0,257.77,257.65,2.0]
[1732244399591,23.776884,257.76,257.65,2.0]
[1732244399897,23.776884,257.77,257.65,2.0]
[1732244400900,9.74847651,257.76,257.65,2.0]
[1732244401467,13.5719,257.89,257.65,2.0]
[1732244401680,9.74847651,257.83,257.66,21.9038]
[1732244402183,13.62697651,257.83,257.66,21.9038]
[1732244402570,9.74847651,257.85,257.66,21.9038]
[1732244402771,9.74847651,257.87,257.67,0.58193819]
[1732244403177,3.8772,257.92,257.68,39.660184]
[1732244403372,9.74847651,257.9,257.71,15.8833]
[1732244403573,9.74847651,257.9,257.71,16.46511161]
[1732244403792,20.4301,257.96,257.72,23.776884]
[1732244403982,9.74847651,257.95,257.75,23.776884]
[1732244404391,9.74847651,257.95,257.76,15.8833]
[1732244404582,9.74847651,257.95,257.77,23.776884]
[1732244404783,15.21893785,257.95,257.77,23.776884]
[1732244405275,15.21893785,257.93,257.77,23.776884]
[1732244405476,15.21893785,257.91,257.76,15.8833]
[1732244405979,23.776884,257.9,257.76,15.8833]
[1732244406704,15.21893785,257.93,257.76,15.8833]
[1732244407114,15.21893785,257.91,257.76,15.8833]
[1732244407285,15.21893785,257.87,257.76,15.8833]
[1732244407627,15.21893785,257.85,257.76,15.8833]
[1732244407791,38.99582185,257.92,257.76,15.8833]
[1732244407792,15.21893785,257.87,257.76,15.8833]
[1732244408109,15.21893785,257.85,257.76,15.8833]
[1732244408405,38.99582185,257.92,257.76,15.8833]
[1732244408406,15.21893785,257.81,257.76,15.8833]
[1732244408903,15.21893785,257.77,257.68,21.9038]
[1732244409479,15.21893785,257.77,257.65,2.0]
[1732244409702,23.776884,257.8,257.65,2.0]
[1732244409703,15.21893785,257.75,257.65,2.0]
[1732244409907,15.21893785,257.73,257.65,2.0]
[1732244410685,20.0,257.72,257.65,2.0]
[1732244410889,15.21893785,257.71,257.65,2.0]
[1732244411100,15.21893785,257.67,257.65,2.0]
[1732244411605,3.8801,257.73,257.65,2.0]
[1732244411606,15.21893785,257.69,257.65,2.0]
[1732244411806,15.21893785,257.67,257.65,2.0]
[1732244414692,20.0,257.66,257.65,2.0]
[1732244416404,35.21893785,257.66,257.65,2.0]
[1732244416915,37.71893785,257.66,257.49,22.4043]
[1732244417208,15.21893785,257.56,257.49,22.4043]
[1732244417607,15.21893785,257.54,257.42,22.4043]
[1732244417807,15.21893785,257.5,257.42,22.4043]
[1732244418111,15.21893785,257.48,257.33,22.4043]
[1732244418293,15.21893785,257.54,257.34,0.58280144]
[1732244418486,15.21893785,257.54,257.34,5.00988692]
[1732244419987,15.21893785,257.58,257.35,20.0]
[1732244420202,20.0,257.59,257.37,5.2388]
[1732244420400,15.21893785,257.6,257.38,0.58252593]
[1732244420609,15.21893785,257.58,257.37,5.2388]
[1732244420995,15.21893785,257.56,257.37,5.2388]
[1732244421210,15.21893785,257.54,257.37,5.2388]
[1732244421610,15.21893785,257.56,257.37,5.2388]
[1732244422304,15.21893785,257.6,257.38,36.1655]
[1732244422611,15.21893785,257.62,257.4,20.0]
[1732244422818,15.21893785,257.66,257.41,5.00952001]
[1732244422993,15.21893785,257.66,257.42,38.6655]
[1732244423188,15.21893785,257.68,257.45,20.0]
[1732244423409,15.21893785,257.7,257.5,20.0]
[1732244424310,15.21893785,257.74,257.52,20.0]
[1732244424518,15.21893785,257.76,257.55,20.0]
[1732244424694,15.21893785,257.76,257.55,24.42708548]
[1732244425044,3.8787,257.82,257.55,24.42708548]
[1732244425045,15.21893785,257.74,257.55,24.42708548]
[1732244425395,15.21893785,257.76,257.55,24.42708548]
[1732244426510,15.21893785,257.76,257.56,0.58212747]
[1732244426714,15.21893785,257.8,257.59,20.0]
[1732244427017,15.21893785,257.82,257.6,4.42708548]
[1732244427318,15.21893785,257.84,257.61,20.58193689]
[1732244427516,15.21893785,257.84,257.63,16.2861]
[1732244427814,15.21893785,257.84,257.64,0.5819364]
[1732244428013,11.3524,257.96,257.66,20.0]
[1732244428014,15.21893785,257.9,257.66,20.0]
[1732244428221,15.21893785,257.9,257.66,22.5]
[1732244428817,15.21893785,257.88,257.67,0.58183067]
[1732244429019,15.21893785,257.86,257.66,4.42708548]
[1732244429426,15.21893785,257.82,257.65,6.1152]
[1732244432507,15.21893785,257.86,257.65,10.54228548]
[1732244432706,15.21893785,257.84,257.65,10.54228548]
[1732244435629,15.21893785,257.86,257.65,10.54228548]
[1732244436235,15.21893785,257.84,257.65,10.54228548]
[1732244437032,15.21893785,257.92,257.68,2.5]
[1732244437228,15.21893785,257.94,257.7,22.4013]
[1732244437547,15.21893785,257.96,257.71,27.41009362]
[1732244437849,15.21893785,257.96,257.72,6.1152]
[1732244438024,15.21893785,257.96,257.72,10.54228548]
[1732244438221,15.21893785,257.94,257.72,10.54228548]
[1732244438942,15.21893785,257.92,257.72,10.54228548]
[1732244439522,15.21893785,257.92,257.72,17.02020944]
[1732244439747,15.21893785,257.92,257.72,10.54228548]
[1732244440135,15.21893785,257.81,257.72,4.42708548]
[1732244440340,15.21893785,257.79,257.71,16.2861]
[1732244440635,15.21893785,257.77,257.66,6.1152]
[1732244440958,15.21893785,257.75,257.66,6.1152]
[1732244441126,15.21893785,257.73,257.66,6.1152]
[1732244441851,15.21893785,257.75,257.66,6.1152]
[1732244442748,24.38788424,257.79,257.66,6.1152]
[1732244442933,3.8784,257.84,257.66,6.1152]
[1732244443136,24.38788424,257.77,257.66,6.1152]
[1732244444365,24.38788424,257.79,257.66,6.1152]
[1732244445950,24.38788424,257.77,257.66,6.1152]
[1732244447148,24.38788424,257.79,257.66,6.1152]
[1732244447368,24.38788424,257.81,257.66,6.1152]
[1732244447677,20.0,257.82,257.66,6.1152]
[1732244447971,24.38788424,257.81,257.66,6.1152]
[1732244448374,24.38788424,257.79,257.66,6.1152]
[1732244448951,24.38788424,257.77,257.66,6.1152]
[1732244449473,24.38788424,257.75,257.66,6.1152]
[1732244452674,24.38788424,257.77,257.66,6.1152]
[1732244453858,24.38788424,257.74,257.66,6.1152]
[1732244454264,24.38788424,257.72,257.56,21.7182]
[1732244454652,24.38788424,257.7,257.56,21.7182]
[1732244455479,12.1976,257.8,257.56,21.7182]
[1732244455480,24.38788424,257.76,257.57,4.42708548]
[1732244455688,24.38788424,257.8,257.57,5.00940559]
[1732244455857,24.38788424,257.82,257.6,15.6981]
[1732244456061,24.38788424,257.82,257.61,4.42708548]
[1732244456463,24.38788424,257.8,257.61,4.42708548]
[1732244457979,24.38788424,257.82,257.61,4.42708548]
[1732244458867,24.38788424,257.82,257.61,5.00913717]
[1732244459377,24.38788424,257.8,257.61,4.42708548]
[1732244459981,24.38788424,257.77,257.6,15.6981]
[1732244460686,24.38788424,257.73,257.6,15.6981]
[1732244461268,24.38788424,257.79,257.6,15.6981]
[1732244461269,24.38788424,257.71,257.6,15.6981]
[1732244461685,24.38788424,257.69,257.6,15.6981]
[1732244462188,24.38788424,257.71,257.6,15.6981]
[1732244462771,15.24635289,257.72,257.6,15.6981]
[1732244464876,3.8796,257.76,257.6,15.6981]
[1732244464877,15.24635289,257.76,257.6,15.6981]
[1732244467080,15.24635289,257.72,257.6,15.6981]
[1732244467287,15.24635289,257.74,257.6,15.6981]
[1732244467488,15.24635289,257.76,257.6,15.6981]
[1732244468390,15.24635289,257.74,257.6,15.6981]
[1732244468799,15.24635289,257.78,257.6,15.6981]
[1732244469500,15.24635289,257.82,257.6,15.6981]
[1732244469689,15.8512,257.91,257.59,6.0201]
[1732244469690,3.8775,257.9,257.64,15.2204]
[1732244469997,15.24635289,257.86,257.65,4.42708548]
[1732244470590,15.24635289,257.86,257.66,23.776884]
[1732244471402,15.24635289,257.84,257.66,23.776884]
[1732244472386,15.24635289,257.84,257.65,4.42708548]
[1732244472703,15.24635289,257.8,257.65,4.42708548]
[1732244473197,15.24635289,257.8,257.64,15.2204]
[1732244473198,15.24635289,257.78,257.64,15.2204]
[1732244473396,23.776884,257.75,257.64,15.2204]
[1732244473598,15.24635289,257.76,257.64,15.2204]
[1732244473898,3.8788,257.81,257.64,15.2204]
[1732244473899,15.24635289,257.78,257.64,15.2204]
[1732244474800,24.38542201,257.75,257.64,15.2204]
[1732244475187,48.16230601,257.77,257.64,15.2204]
[1732244475384,24.38542201,257.79,257.64,15.2204]
[1732244475699,48.16230601,257.79,257.64,15.2204]
[1732244475996,2.5,257.9,257.64,15.2204]
[1732244475997,24.38542201,257.81,257.64,15.2204]
[1732244476207,24.38542201,257.79,257.64,15.2204]
[1732244476411,24.38542201,257.77,257.64,15.2204]
[1732244476708,24.38542201,257.79,257.64,15.2204]
[1732244476881,24.38542201,257.83,257.64,15.2204]
[1732244477082,24.38542201,257.83,257.65,23.776884]
[1732244478200,24.38542201,257.85,257.65,23.776884]
[1732244478402,24.38542201,257.85,257.65,28.20396948]
[1732244478576,24.38542201,257.87,257.67,23.776884]
[1732244479676,24.38542201,257.91,257.71,15.4408]
[1732244479880,24.38542201,257.91,257.72,23.776884]
[1732244480300,24.38542201,257.93,257.72,28.20396948]
[1732244480512,24.38542201,257.95,257.73,26.04178548]
[1732244480687,21.57976712,258.03,257.76,23.776884]
[1732244480688,24.38542201,257.97,257.76,23.776884]
[1732244480883,24.38542201,257.97,257.78,23.776884]
[1732244481415,24.38542201,257.95,257.78,23.776884]
[1732244482416,24.38542201,257.99,257.78,23.776884]
[1732244482713,24.38542201,257.99,257.78,28.20396948]
[1732244484893,15.5065,258.03,257.78,28.20396948]
[1732244484894,24.38542201,257.97,257.78,28.20396948]
[1732244485136,24.38542201,257.95,257.78,28.20396948]
[1732244485817,48.16230601,257.97,257.78,28.20396948]
[1732244486393,24.38542201,257.97,257.78,28.20396948]
[1732244486595,24.38542201,257.99,257.82,23.776884]
[1732244486814,24.38542201,258.02,257.84,23.776884]
[1732244489807,24.38542201,258.02,257.86,23.776884]
[1732244490430,24.38542201,258.04,257.88,23.776884]
[1732244490728,24.38542201,258.04,257.89,15.4423]
[1732244493708,24.38542201,258.0,257.89,15.4423]
[1732244494932,20.0,258.12,257.89,15.4423]
[1732244495109,24.38542201,258.05,257.89,15.4423]
[1732244496132,24.38542201,258.03,257.89,15.4423]
[1732244496707,15.20865581,258.03,257.89,15.4423]
[1732244497632,15.20865581,258.01,257.89,15.4423]
[1732244497848,15.20865581,257.99,257.89,15.4423]
[1732244498333,15.20865581,258.01,257.89,15.4423]
[1732244499435,19.08445581,258.01,257.89,15.4423]
[1732244499619,15.20865581,257.97,257.89,15.4423]
[1732244500227,15.20865581,257.99,257.89,15.4423]
[1732244501721,15.20865581,257.97,257.89,15.4423]
[1732244502036,15.20865581,257.95,257.87,6.1116]
[1732244502237,15.20865581,257.93,257.87,6.1116]
[1732244502634,15.20865581,257.93,257.83,16.5959]
[1732244502936,2.5,258.02,257.83,16.5959]
[1732244502937,15.20865581,257.91,257.83,16.5959]
[1732244503236,15.20865581,257.89,257.83,16.5959]
[1732244504528,15.20865581,257.87,257.8,6.2793]
[1732244504837,15.20865581,257.87,257.77,16.5959]
[1732244505237,3.8776,257.89,257.77,16.5959]
[1732244505238,15.20865581,257.85,257.77,16.5959]
[1732244505550,15.20865581,257.81,257.74,6.2793]
[1732244506241,15.20865581,257.79,257.71,16.5959]
[1732244506440,15.20865581,257.77,257.71,16.5959]
[1732244506741,15.20865581,257.75,257.71,16.5959]
[1732244506954,15.20865581,257.73,257.65,16.5959]
[1732244507842,23.776884,257.72,257.65,16.5959]
[1732244508142,15.20865581,257.71,257.65,16.5959]
[1732244508341,15.20865581,257.73,257.65,16.5959]
[1732244508539,23.776884,257.72,257.65,16.5959]
[1732244508736,15.20865581,257.75,257.65,16.5959]
[1732244509338,38.98553981,257.77,257.65,16.5959]
[1732244510640,15.20865581,257.81,257.65,16.5959]
[1732244510841,15.20865581,257.85,257.66,23.776884]
[1732244511047,15.20865581,257.83,257.65,21.02298548]
[1732244511223,15.20865581,257.81,257.65,21.02298548]
[1732244511926,15.20865581,257.79,257.65,16.5959]
[1732244512621,15.20865581,257.77,257.65,16.5959]
[1732244512823,15.20865581,257.75,257.65,16.5959]
[1732244514122,15.20865581,257.73,257.65,16.5959]
[1732244514427,15.20865581,257.71,257.61,6.2793]
[1732244514936,15.20865581,257.67,257.61,6.2793]
[1732244515460,15.20865581,257.67,257.59,16.5959]
[1732244515746,23.776884,257.66,257.59,16.5959]
[1732244516651,24.40036901,257.68,257.59,16.5959]
[1732244516850,3.8804,257.71,257.59,16.5959]
[1732244516851,48.17725301,257.7,257.59,16.5959]
[1732244519543,24.40036901,257.68,257.59,16.5959]
[1732244519744,24.40036901,257.7,257.59,16.5959]
[1732244520070,24.40036901,257.72,257.59,16.5959]
[1732244520439,24.40036901,257.74,257.59,16.5959]
[1732244520761,23.776884,257.73,257.59,16.5959]
[1732244522966,24.40036901,257.7,257.59,16.5959]
[1732244525844,23.776884,257.69,257.59,16.5959]
[1732244526058,23.776884,257.67,257.59,16.5959]
[1732244526264,24.40036901,257.66,257.59,16.5959]
[1732244526461,24.40036901,257.64,257.59,16.5959]
[1732244526662,23.776884,257.63,257.59,16.5959]
[1732244526868,23.776884,257.63,257.55,6.2793]
[1732244526869,24.40036901,257.6,257.53,16.5959]
[1732244527072,23.776884,257.59,257.53,16.5959]
[1732244527246,23.776884,257.59,257.48,6.2793]
[1732244527247,24.40036901,257.58,257.48,6.2793]
[1732244527447,23.776884,257.55,257.48,6.2793]
[1732244527673,24.40036901,257.54,257.48,6.2793]
[1732244527856,23.776884,257.55,257.41,16.5959]
[1732244527857,24.40036901,257.5,257.41,16.5959]
[1732244528265,24.40036901,257.44,257.28,22.8752]
[1732244528568,23.776884,257.41,257.28,22.8752]
[1732244528768,24.40036901,257.38,257.28,22.8752]
[1732244528960,24.40036901,257.36,257.21,22.8752]
[1732244529273,23.776884,257.33,257.21,22.8752]
[1732244529768,23.776884,257.33,257.13,3.24]
[1732244529769,24.40036901,257.22,257.13,3.24]
[1732244530068,24.40036901,257.14,257.13,3.24]
[1732244530246,48.17725301,257.14,257.13,3.24]
[1732244531059,24.40036901,257.18,257.13,3.24]
[1732244531260,23.776884,257.17,257.13,3.24]
[1732244531468,24.40036901,257.14,257.13,3.24]
[1732244531652,48.17725301,257.14,257.13,3.24]
[1732244532051,2.5,257.26,257.13,3.24]
[1732244532052,20.0,257.25,257.13,3.24]
[1732244532352,23.776884,257.17,257.13,3.24]
[1732244532868,24.40036901,257.18,257.13,3.24]
[1732244533071,23.776884,257.21,257.13,3.24]
[1732244533248,24.40036901,257.24,257.13,3.24]
[1732244533988,24.40036901,257.35,257.14,23.776884]
[1732244534187,24.40036901,257.35,257.16,23.776884]
[1732244534371,24.40036901,257.31,257.15,6.6392]
[1732244534570,24.40036901,257.29,257.15,6.6392]
[1732244534875,24.40036901,257.25,257.15,6.6392]
[1732244535079,24.40036901,257.25,257.05,50.416084]
[1732244535287,24.40036901,257.23,257.05,6.6392]
[1732244535489,24.40036901,257.21,257.05,6.6392]
[1732244535688,24.40036901,257.19,257.05,6.6392]
[1732244536384,24.40036901,257.25,257.05,6.6392]
[1732244536982,23.776884,257.26,257.06,23.776884]
[1732244537181,24.40036901,257.27,257.06,23.776884]
[1732244537372,24.40036901,257.27,257.06,26.276884]
[1732244538392,24.40036901,257.31,257.08,2.5]
[1732244538584,24.40036901,257.35,257.12,2.5]
[1732244538885,24.40036901,257.35,257.14,23.776884]
[1732244539096,24.40036901,257.37,257.14,23.776884]
[1732244539280,24.40036901,257.37,257.14,26.276884]
[1732244539490,31.952534,257.46,257.13,16.0148]
[1732244539491,24.40036901,257.4,257.19,23.776884]
[1732244539668,24.40036901,257.42,257.19,23.776884]
[1732244540269,24.40036901,257.39,257.19,26.276884]
[1732244540595,24.40036901,257.41,257.21,23.776884]
[1732244540776,24.40036901,257.43,257.22,16.0148]
[1732244541085,24.40036901,257.39,257.22,16.0148]
[1732244541802,24.40036901,257.43,257.23,23.776884]
[1732244542007,24.40036901,257.47,257.25,23.776884]
[1732244542293,24.40036901,257.51,257.27,23.776884]
[1732244542492,24.40036901,257.51,257.29,23.776884]
[1732244542694,24.40036901,257.49,257.29,23.776884]
[1732244542897,24.40036901,257.47,257.29,23.776884]
[1732244543965,24.40036901,257.45,257.29,23.776884]
[1732244544583,16.4277,257.61,257.29,23.776884]
[1732244544584,24.40036901,257.47,257.29,23.776884]
[1732244544992,24.40036901,257.49,257.29,23.776884]
[1732244546196,24.40036901,257.43,257.28,16.0148]
[1732244546875,24.40036901,257.41,257.28,16.0148]
[1732244547094,23.776884,257.4,257.28,16.0148]
[1732244548003,24.40036901,257.37,257.28,16.0148]
[1732244548292,24.40036901,257.39,257.28,16.0148]
[1732244549707,24.40036901,257.37,257.28,16.0148]
[1732244549883,24.40036901,257.35,257.28,16.0148]
[1732244551292,24.40036901,257.33,257.22,15.6561]
[1732244552732,23.776884,257.34,257.22,15.6561]
[1732244553591,24.40036901,257.35,257.22,15.6561]
[1732244557133,24.40036901,257.43,257.22,15.6561]
[1732244557999,24.40036901,257.41,257.22,15.6561]
[1732244558430,23.776884,257.4,257.22,15.6561]
[1732244559713,24.40036901,257.39,257.22,15.6561]
[1732244560011,24.40036901,257.36,257.22,15.6561]
[1732244561231,24.40036901,257.32,257.22,15.6561]
[1732244561436,24.40036901,257.29,257.22,15.6561]
[1732244562531,24.40036901,257.31,257.22,15.6561]
[1732244563122,48.17725301,257.35,257.22,15.6561]
[1732244563621,24.40036901,257.33,257.22,15.6561]
[1732244564429,23.776884,257.35,257.22,15.6561]
[1732244564430,24.40036901,257.31,257.22,15.6561]
[1732244565737,24.40036901,257.25,257.15,16.145]
[1732244565911,23.776884,257.24,257.15,16.145]
[1732244567010,24.40036901,257.19,257.04,16.145]
[1732244567226,24.40036901,257.17,257.04,16.145]
[1732244567635,23.776884,257.16,257.04,16.145]
[1732244568013,3.8875,257.23,257.04,16.145]
[1732244568014,23.8869,257.28,257.04,16.145]
[1732244568222,23.776884,257.24,257.04,16.145]
[1732244569146,23.776884,257.24,257.05,23.776884]
[1732244569636,24.40036901,257.25,257.05,23.776884]
[1732244569825,24.40036901,257.29,257.06,16.145]
[1732244570038,24.40036901,257.29,257.07,23.776884]
[1732244571012,24.40036901,257.29,257.08,20.0]
[1732244571213,24.40036901,257.33,257.1,23.776884]
[1732244571426,24.40036901,257.33,257.12,23.776884]
[1732244571633,24.40036901,257.33,257.14,23.776884]
[1732244571849,24.40036901,257.35,257.14,23.776884]
[1732244572228,24.40036901,257.37,257.16,23.776884]
[1732244572429,24.40036901,257.37,257.18,23.776884]
[1732244572835,23.776884,257.36,257.18,23.776884]
[1732244573337,24.40036901,257.33,257.17,15.3725]
[1732244573728,24.40036901,257.31,257.17,15.3725]
[1732244574518,23.776884,257.34,257.17,15.3725]
[1732244574519,24.40036901,257.27,257.17,15.3725]
[1732244574818,24.40036901,257.31,257.17,15.3725]
[1732244575018,23.776884,257.32,257.17,15.3725]
[1732244576016,24.40036901,257.33,257.17,15.3725]
[1732244577744,24.40036901,257.37,257.18,23.776884]
[1732244578535,24.40036901,257.39,257.18,23.776884]
[1732244578738,6.3858,257.49,257.22,23.776884]
[1732244578739,24.40036901,257.43,257.22,23.776884]
[1732244579237,3.884,257.47,257.22,23.776884]
[1732244579238,24.40036901,257.41,257.22,23.776884]
[1732244579959,24.40036901,257.37,257.21,15.531]
[1732244580646,24.40036901,257.34,257.21,15.531]
[1732244580839,23.776884,257.31,257.21,15.531]
[1732244581147,24.40036901,257.3,257.21,15.531]
[1732244582358,23.776884,257.29,257.21,15.531]
[1732244582568,23.776884,257.27,257.21,15.531]
[1732244582747,23.776884,257.27,257.2,6.4904]
[1732244583063,23.776884,257.25,257.15,15.531]
[1732244583362,23.776884,257.23,257.15,15.531]
[1732244583539,23.776884,257.21,257.13,6.4904]
[1732244583744,23.776884,257.19,257.08,15.531]
[1732244583961,24.40036901,257.15,257.01,6.4904]
[1732244584162,23.776884,257.14,257.01,6.4904]
[1732244584469,26.90036901,257.27,257.01,6.4904]
[1732244584470,24.40036901,257.18,257.01,6.4904]
[1732244584668,23.776884,257.17,257.01,6.4904]
[1732244585369,24.40036901,257.26,257.01,8.9904]
[1732244585542,24.40036901,257.28,257.02,6.4904]
[1732244585968,24.40036901,257.26,257.02,6.4904]
[1732244586549,24.40036901,257.24,257.03,23.776884]
[1732244586749,23.776884,257.23,257.03,23.776884]
[1732244587049,24.40036901,257.28,257.04,2.5]
[1732244587557,24.40036901,257.28,257.05,23.776884]
[1732244587946,24.40036901,257.28,257.07,23.776884]
[1732244588367,24.40036901,257.28,257.08,15.531]
[1732244588678,46.22056901,257.4,257.08,15.531]
[1732244588679,24.40036901,257.3,257.09,23.776884]
[1732244589176,24.40036901,257.28,257.09,23.776884]
[1732244589477,23.776884,257.25,257.08,15.531]
[1732244589947,24.40036901,257.24,257.08,15.531]
[1732244590145,23.776884,257.23,257.08,15.531]
[1732244590365,2.5,257.33,257.08,15.531]
[1732244590366,23.776884,257.21,257.08,15.531]
[1732244591467,24.40036901,257.22,257.08,15.531]
[1732244591650,23.776884,257.23,257.08,15.531]
[1732244592464,23.776884,257.25,257.08,15.531]
[1732244593352,24.40036901,257.3,257.09,23.776884]
[1732244593556,23.776884,257.29,257.09,23.776884]
[1732244593764,46.22056901,257.4,257.11,23.776884]
[1732244593765,24.40036901,257.32,257.11,23.776884]
[1732244594086,24.40036901,257.34,257.11,23.776884]
[1732244594546,33.37945438,257.48,257.11,23.776884]
[1732244594547,24.40036901,257.36,257.11,23.776884]
[1732244594749,24.40036901,257.36,257.13,23.776884]
[1732244595267,24.40036901,257.38,257.13,23.776884]
[1732244595973,23.776884,257.37,257.13,23.776884]
[1732244596187,24.40036901,257.38,257.13,23.776884]
[1732244597377,24.40036901,257.36,257.13,23.776884]
[1732244597671,23.776884,257.37,257.13,23.776884]
[1732244597672,24.40036901,257.32,257.13,23.776884]
[1732244597876,23.776884,257.31,257.12,21.7397]
[1732244598063,24.40036901,257.34,257.12,21.7397]
[1732244598267,23.776884,257.35,257.12,21.7397]
[1732244599177,23.776884,257.33,257.13,23.776884]
[1732244600055,23.776884,257.35,257.13,23.776884]
[1732244601073,24.40036901,257.4,257.15,20.0]
[1732244601255,24.40036901,257.43,257.2,23.776884]
[1732244601965,24.40036901,257.41,257.2,23.776884]
[1732244602164,24.40036901,257.37,257.2,23.776884]
[1732244603074,24.40036901,257.39,257.2,23.776884]
[1732244603279,24.40036901,257.41,257.2,23.776884]
[1732244604381,24.40036901,257.47,257.24,15.2177]
[1732244604553,24.40036901,257.5,257.27,15.2177]
[1732244604866,24.40036901,257.47,257.27,15.2177]
[1732244605055,24.40036901,257.45,257.27,15.2177]
[1732244605256,3.8833,257.51,257.27,15.2177]
[1732244605257,24.40036901,257.47,257.27,15.2177]
[1732244605872,23.776884,257.46,257.27,15.2177]
[1732244606178,24.40036901,257.45,257.27,15.2177]
[1732244606364,23.776884,257.44,257.27,15.2177]
[1732244607162,24.40036901,257.47,257.28,23.776884]
[1732244607379,24.40036901,257.49,257.28,23.776884]
[1732244607554,24.40036901,257.51,257.3,23.776884]
[1732244607881,24.40036901,257.53,257.3,23.776884]
[1732244608056,24.40036901,257.55,257.31,16.4385]
[1732244608380,24.40036901,257.55,257.32,23.776884]
[1732244608961,24.40036901,257.53,257.32,23.776884]
[1732244609683,23.776884,257.52,257.32,23.776884]
[1732244609981,3.8819,257.6,257.34,23.776884]
[1732244609982,24.40036901,257.55,257.34,23.776884]
[1732244610171,34.10326901,257.66,257.32,23.776884]
[1732244610172,24.40036901,257.61,257.39,6.0811]
[1732244610364,24.40036901,257.61,257.4,23.776884]
[1732244610565,24.40036901,257.59,257.4,23.776884]
[1732244612068,23.776884,257.58,257.4,23.776884]
[1732244612856,24.40036901,257.63,257.42,23.776884]
[1732244613265,24.40036901,257.63,257.43,6.0811]
[1732244613467,24.40036901,257.63,257.44,23.776884]
[1732244614183,24.40036901,257.61,257.44,23.776884]
[1732244614683,23.776884,257.64,257.45,16.4385]
[1732244614885,23.776884,257.64,257.46,23.776884]
[1732244615382,24.40036901,257.63,257.46,23.776884]
[1732244615764,23.776884,257.62,257.45,16.4385]
[1732244616177,24.40036901,257.61,257.45,16.4385]
[1732244616966,24.40036901,257.59,257.45,16.4385]
[1732244617164,24.40036901,257.57,257.45,16.4385]
[1732244618075,23.776884,257.56,257.45,16.4385]
[1732244618388,23.776884,257.58,257.45,16.4385]
[1732244618685,24.40036901,257.57,257.45,16.4385]
[1732244619077,23.776884,257.56,257.45,16.4385]
[1732244620299,23.756884,257.54,257.45,16.4385]
[1732244621284,24.40036901,257.53,257.45,16.4385]
[1732244621471,24.40036901,257.51,257.45,16.4385]
[1732244621666,23.756884,257.54,257.45,16.4385]
[1732244623575,24.40036901,257.53,257.45,16.4385]
[1732244625291,24.40036901,257.49,257.4,15.8172]
[1732244625491,23.776884,257.46,257.4,15.8172]
[1732244625786,23.776884,257.44,257.36,6.0821]
[1732244626378,23.776884,257.44,257.34,15.8172]
[1732244626379,24.40036901,257.41,257.34,15.8172]
[1732244626587,24.40036901,257.43,257.34,15.8172]
[1732244626771,23.776884,257.42,257.34,15.8172]
[1732244627380,27.661584,257.42,257.34,15.8172]
[1732244628476,23.776884,257.42,257.34,15.8172]
[1732244628683,23.776884,257.46,257.34,15.8172]
[1732244631290,27.660984,257.46,257.34,15.8172]
[1732244631877,24.40036901,257.45,257.34,15.8172]
[1732244632076,23.776884,257.44,257.34,15.8172]
[1732244633883,28.28486901,257.43,257.34,15.8172]
[1732244634081,23.776884,257.42,257.34,15.8172]
[1732244636493,23.776884,257.44,257.34,15.8172]
[1732244637082,24.40036901,257.49,257.34,15.8172]
[1732244638594,24.40036901,257.51,257.34,15.8172]
[1732244638900,24.40036901,257.53,257.34,15.8172]